fUSD/lending_fUSD_20240118
["ID","MTS","AMOUNT","RATE_DAILY","PERIOD"]
[312023900,1705557032822,-150.0,0.00021014,2]
[312023901,1705557032831,-157.16,0.00021074,2]
[312023902,1705557032840,-2000.0,0.00021128,2]
[312023903,1705557032849,-158.47,0.00021148,2]
[312023904,1705557032858,-150.0,0.00021177,2]
[312023905,1705557032867,-226.03,0.00021205,2]
[312023906,1705557032876,-164.22,0.00021325,2]
[312023907,1705557032885,-619.4,0.00021363,2]
[312023908,1705557032895,-1156.73,0.00021423,2]
[312023909,1705557032904,-159.47,0.00021662,2]
[312023910,1705557032913,-158.47,0.00021685,2]
[312023911,1705557033136,-150.0,0.00021693,2]
[312023912,1705557033145,-150.0,0.00021724,2]
[312023913,1705557033154,-157.16,0.00021754,2]
[312023914,1705557033164,-299.25,0.00021899,2]
[312023915,1705557033174,-329.21605119,0.00021899,3]
[312023916,1705557033183,-300.0,0.000219,7]
[312023917,1705557033192,-250.0,0.000219,2]
[312023918,1705557033202,-250.0,0.00021918,2]
[312023919,1705557033211,-800.0,0.00021973,2]
[312023920,1705557033221,-3100.0,0.00022,2]
[312023921,1705557033230,-176.3,0.00022,2]
[312023922,1705557033239,-273.1533686,0.00022,2]
[312023923,1705557033249,-18650.0,0.00022,2]
[312023924,1705557033259,-150.0,0.00022031,2]
[312023925,1705557033268,-2245.7248,0.00022088,2]
[312023926,1705557033277,-299.6565,0.00022088,2]
[312023927,1705557033286,-1272.05618155,0.00022088,2]
[312023928,1705557033295,-1000.0,0.00022089,2]
[312023929,1705557033307,-5000.0,0.0002209,2]
[312023930,1705557033316,-150.0,0.00022096,2]
[312023931,1705557033325,-800.0,0.00022164,2]
[312023932,1705557033334,-800.0,0.00022164,2]
[312023933,1705557033344,-523.67184027,0.00022186,2]
[312023934,1705557033354,-1442.1042752,0.00022186,2]
[312023935,1705557033363,-667.96898179,0.00022187,2]
[312023936,1705557033372,-500.0,0.00022187,2]
[312023937,1705557033381,-500.91293119,0.00022187,2]
[312023938,1705557033391,-500.0,0.00022187,2]
[312023939,1705557033404,-500.0,0.00022187,2]
[312023940,1705557033413,-500.0,0.00022187,2]
[312023941,1705557033423,-500.0,0.00022187,2]
[312023942,1705557033432,-500.0,0.00022188,2]
[312023943,1705557033441,-500.0,0.00022188,2]
[312023944,1705557033450,-500.0,0.00022188,2]
[312023945,1705557033459,-500.0,0.00022188,2]
[312023946,1705557033469,-459.04257352,0.00022188,2]
[312023947,1705557033493,-40.95742648,0.00022188,2]
[312023948,1705557033504,-500.0,0.00022188,2]
[312023949,1705557033515,-500.0,0.00022188,2]
[312023950,1705557033524,-500.0,0.00022188,2]
[312023951,1705557033534,-383.9393182,0.00022188,2]
[312023952,1705557040179,-207.0,0.00018807,2]
[312023953,1705557040189,-151.15160211,0.00019323,2]
[312023954,1705557040198,-200.0,0.00020329,2]
[312023955,1705557040207,-454.42039789,0.00022187,2]
[312023956,1705557040219,-79.30960211,0.00022187,2]
[312023957,1705557040228,-500.0,0.00022187,2]
[312023958,1705557040237,-74.3694105,0.00022188,2]
[312023959,1705557040342,-41.6912713,0.00022188,2]
[312023960,1705557040351,-500.0,0.00022188,2]
[312023961,1705557040360,-505.49,0.00022188,2]
[312023962,1705557040369,-500.0,0.00022188,2]
[312023963,1705557040379,-500.0,0.00022188,2]
[312023964,1705557040388,-533.28,0.00022188,2]
[312023965,1705557040401,-331.66552757,0.00022188,2]
[312023966,1705557040413,-168.33447243,0.00022188,2]
[312023967,1705557040422,-439.72824507,0.00022188,2]
[312023968,1705557040515,-60.27175493,0.00022188,2]
[312023969,1705557040526,-500.0,0.00022188,2]
[312023970,1705557040536,-500.0,0.00022188,2]
[312023971,1705557040545,-500.0,0.00022188,2]
[312023972,1705557040554,-500.0,0.00022188,2]
[312023973,1705557040563,-500.0,0.00022188,2]
[312023974,1705557040572,-500.0,0.00022188,2]
[312023975,1705557040582,-416.06155484,0.00022188,2]
[312024018,1705557041043,-83.93844516,0.00022188,2]
[312024019,1705557041052,-222.15884851,0.00022188,2]
[312024020,1705557041100,-277.84115149,0.00022188,2]
[312024022,1705557041110,-500.0,0.00022188,2]
[312024024,1705557041119,-555.64,0.00022188,2]
[312024026,1705557041128,-500.0,0.00022188,2]
[312024028,1705557041137,-500.0,0.00022188,2]
[312024030,1705557041147,-500.0,0.00022188,2]
[312024033,1705557041156,-500.0,0.00022188,2]
[312024035,1705557041165,-500.0,0.00022188,2]
[312024037,1705557041174,-500.0,0.00022188,2]
[312024038,1705557041183,-500.0,0.00022188,2]
[312024041,1705557041192,-500.0,0.00022188,2]
[312024043,1705557041201,-500.0,0.00022188,2]
[312024045,1705557041211,-564.74,0.00022188,2]
[312024047,1705557041220,-500.0,0.00022188,2]
[312024049,1705557041229,-500.0,0.00022188,2]
[312024050,1705557041238,-500.0,0.00022188,2]
[312024052,1705557041247,-500.0,0.00022188,2]
[312024054,1705557041256,-500.0,0.00022188,2]
[312024056,1705557041265,-500.0,0.00022188,2]
[312024058,1705557041275,-500.0,0.00022188,2]
[312024060,1705557041285,-500.0,0.00022188,2]
[312024063,1705557041294,-500.0,0.00022188,2]
[312024064,1705557041304,-525.16,0.00022188,2]
[312024067,1705557041313,-500.0,0.00022188,2]
[312024069,1705557041322,-150.0,0.00022188,2]
[312024070,1705557041331,-500.0,0.00022188,2]
[312024072,1705557041340,-500.0,0.00022188,2]
[312024074,1705557041349,-500.0,0.00022188,2]
[312024077,1705557041359,-500.0,0.00022188,2]
[312024079,1705557041368,-500.0,0.00022188,2]
[312024081,1705557041377,-500.0,0.00022188,2]
[312024082,1705557041387,-500.0,0.00022188,2]
[312024085,1705557041399,-500.0,0.00022188,2]
[312024087,1705557041408,-500.0,0.00022188,2]
[312024089,1705557041416,-500.0,0.00022188,2]
[312024091,1705557041425,-500.0,0.00022188,2]
[312024093,1705557041435,-500.0,0.00022188,2]
[312024095,1705557041445,-500.0,0.00022188,2]
[312024096,1705557041454,-414.47055425,0.00022188,2]
[312024099,1705557041464,-500.0,0.00022188,2]
[312024101,1705557041476,-517.84540609,0.00022188,2]
[312024103,1705557041486,-500.0,0.00022188,2]
[312024104,1705557041495,-150.0,0.00022188,2]
[312024106,1705557041504,-500.0,0.00022188,2]
[312024109,1705557041514,-500.0,0.00022188,2]
[312024111,1705557041523,-500.0,0.00022188,2]
[312024112,1705557041533,-500.0,0.00022188,2]
[312024114,1705557041543,-500.0,0.00022188,2]
[312024116,1705557041552,-500.0,0.00022188,2]
[312024118,1705557041562,-500.0,0.00022188,2]
[312024121,1705557041571,-500.0,0.00022188,2]
[312024122,1705557041580,-502.49383688,0.00022188,2]
[312024124,1705557041589,-500.0,0.00022188,2]
[312024126,1705557041599,-512.89643865,0.00022188,2]
[312024128,1705557041608,-500.0,0.00022188,2]
[312024130,1705557041618,-500.0,0.00022188,2]
[312024132,1705557041627,-500.0,0.00022188,2]
[312024134,1705557041636,-500.0,0.00022188,2]
[312024136,1705557041647,-500.0,0.00022188,2]
[312024138,1705557041656,-500.0,0.00022188,2]
[312024140,1705557041665,-511.55912992,0.00022188,2]
[312024142,1705557041676,-500.0,0.00022188,2]
[312024144,1705557041686,-500.0,0.00022188,2]
[312024146,1705557041695,-500.0,0.00022188,2]
[312024148,1705557041704,-500.0,0.00022188,2]
[312024150,1705557041713,-500.0,0.00022188,2]
[312024153,1705557041722,-500.0,0.00022188,2]
[312024155,1705557041732,-500.0,0.00022188,2]
[312024157,1705557041741,-500.0,0.00022188,2]
[312024159,1705557041750,-500.0,0.00022188,2]
[312024161,1705557041758,-500.0,0.00022188,2]
[312024162,1705557041767,-500.0,0.00022188,2]
[312024164,1705557041777,-500.0,0.00022188,2]
[312024166,1705557041786,-500.0,0.00022188,2]
[312024168,1705557041794,-500.0,0.00022188,2]
[312024171,1705557041804,-500.0,0.00022188,2]
[312024173,1705557041813,-637.33095685,0.00022188,2]
[312024175,1705557041822,-500.0,0.00022188,2]
[312024176,1705557041831,-500.0,0.00022188,2]
[312024179,1705557041840,-500.0,0.00022188,2]
[312024181,1705557041849,-500.0,0.00022188,2]
[312024183,1705557041858,-500.0,0.00022188,2]
[312024185,1705557041867,-500.0,0.00022188,2]
[312024187,1705557041876,-500.0,0.00022188,2]
[312024189,1705557041885,-500.0,0.00022188,2]
[312024191,1705557041894,-500.0,0.00022188,2]
[312024193,1705557041904,-500.0,0.00022188,2]
[312024195,1705557041912,-500.0,0.00022188,2]
[312024197,1705557041921,-500.0,0.00022188,2]
[312024199,1705557041930,-210.42,0.00022188,2]
[312024201,1705557041939,-500.0,0.00022188,2]
[312024203,1705557041948,-500.0,0.00022188,2]
[312024205,1705557041957,-500.0,0.00022188,2]
[312024207,1705557041965,-500.0,0.00022188,2]
[312024209,1705557041975,-500.0,0.00022188,2]
[312024211,1705557041984,-500.0,0.00022188,2]
[312024213,1705557041993,-500.0,0.00022188,2]
[312024214,1705557042002,-170.03,0.00022188,2]
[312024217,1705557042011,-500.0,0.00022188,2]
[312024219,1705557042020,-500.0,0.00022188,2]
[312024221,1705557042030,-500.0,0.00022188,2]
[312024223,1705557042040,-500.0,0.00022188,2]
[312024225,1705557042049,-500.0,0.00022188,2]
[312024227,1705557042058,-509.94851264,0.00022188,2]
[312024228,1705557042067,-500.0,0.00022188,2]
[312024231,1705557042076,-500.0,0.00022188,2]
[312024232,1705557042086,-500.0,0.00022188,2]
[312024234,1705557042095,-502.08199308,0.00022188,2]
[312024258,1705557042306,-508.55829176,0.00022188,2]
[312024261,1705557042317,-577.34,0.00022188,2]
[312024263,1705557042326,-500.0,0.00022188,2]
[312024265,1705557042335,-500.69748237,0.00022188,2]
[312024267,1705557042344,-343.06948745,0.00022188,2]
[312024269,1705557042353,-500.0,0.00022188,2]
[312024271,1705557042362,-500.0,0.00022188,2]
[312024273,1705557042372,-500.0,0.00022188,2]
[312024275,1705557042381,-533.53815961,0.00022188,2]
[312024277,1705557042390,-500.0,0.00022188,2]
[312024279,1705557042402,-191.6816545,0.00022188,2]
[312024281,1705557042411,-500.0,0.00022188,2]
[312024283,1705557042420,-500.0,0.00022188,2]
[312024285,1705557042429,-895.68,0.00022188,2]
[312024287,1705557042439,-168.9497879,0.00022188,2]
[312024289,1705557042448,-500.0,0.00022188,2]
[312024291,1705557042457,-869.59,0.00022188,2]
[312024293,1705557042466,-500.0,0.00022188,2]
[312024295,1705557042476,-500.0,0.00022188,2]
[312024297,1705557042485,-500.0,0.00022188,2]
[312024299,1705557042494,-500.0,0.00022188,2]
[312024301,1705557042503,-500.0,0.00022188,2]
[312024303,1705557042513,-500.0,0.00022188,2]
[312024305,1705557042522,-500.0,0.00022188,2]
[312024307,1705557042531,-516.49294895,0.00022188,2]
[312024309,1705557042540,-500.0,0.00022188,2]
[312024311,1705557042550,-500.0,0.00022188,2]
[312024313,1705557042558,-500.0,0.00022188,2]
[312024315,1705557042568,-500.0,0.00022188,2]
[312024317,1705557042577,-453.5459714,0.00022188,2]
[312024319,1705557042586,-500.48,0.00022188,2]
[312024321,1705557042595,-1934.61,0.00022188,2]
[312024323,1705557042604,-500.0,0.00022188,2]
[312024325,1705557042614,-500.0,0.00022188,2]
[312024327,1705557042623,-500.0,0.00022188,2]
[312024329,1705557042632,-500.0,0.00022188,2]
[312024331,1705557042641,-267.29556504,0.00022188,2]
[312024333,1705557042650,-500.0,0.00022188,2]
[312024335,1705557042659,-4433.26,0.00022188,2]
[312024337,1705557042668,-500.0,0.00022188,2]
[312024339,1705557042677,-500.0,0.00022188,2]
[312024341,1705557042686,-2445.47,0.00022188,2]
[312024343,1705557042695,-500.0,0.00022188,2]
[312024345,1705557042705,-500.0,0.00022188,2]
[312024347,1705557042714,-500.0,0.00022188,2]
[312024349,1705557042723,-500.0,0.00022188,2]
[312024351,1705557042732,-500.0,0.00022188,2]
[312024353,1705557042741,-5189.14,0.00022188,2]
[312024355,1705557042750,-500.0,0.00022188,2]
[312024357,1705557042759,-3174.13,0.00022188,2]
[312024359,1705557042768,-500.0,0.00022188,2]
[312024361,1705557042778,-2800.5,0.00022188,2]
[312024362,1705557042787,-500.0,0.00022188,2]
[312024363,1705557042797,-301.11759385,0.00022188,2]
[312024364,1705557042806,-2068.32,0.00022188,2]
[312024365,1705557042817,-500.0,0.00022188,2]
[312024366,1705557042826,-500.0,0.00022188,2]
[312024367,1705557042835,-580.4,0.00022188,2]
[312024368,1705557042844,-500.0,0.00022188,2]
[312024370,1705557042854,-500.0,0.00022188,2]
[312024372,1705557042863,-500.0,0.00022188,2]
[312024374,1705557042872,-500.0,0.00022188,2]
[312024376,1705557042881,-500.0,0.00022188,2]
[312024378,1705557042890,-1537.74,0.00022188,2]
[312024380,1705557042899,-500.0,0.00022188,2]
[312024382,1705557042908,-1335.53,0.00022188,2]
[312024384,1705557042918,-545.3,0.00022188,2]
[312024386,1705557042927,-849.08,0.00022188,2]
[312024388,1705557042936,-500.0,0.00022188,2]
[312024390,1705557042945,-500.0,0.00022188,2]
[312024392,1705557042955,-179.62495424,0.00022188,2]
[312024394,1705557042964,-854.83,0.00022188,2]
[312024396,1705557042974,-500.0,0.00022188,2]
[312024398,1705557042983,-502.11004129,0.00022188,2]
[312024400,1705557042992,-515.67692405,0.00022188,2]
[312024402,1705557043001,-500.0,0.00022188,2]
[312024404,1705557043010,-500.0,0.00022188,2]
[312024406,1705557043020,-528.83768231,0.00022188,2]
[312024408,1705557043029,-500.0,0.00022188,2]
[312024410,1705557043038,-625.51,0.00022188,2]
[312024412,1705557043046,-626.89,0.00022188,2]
[312024414,1705557043055,-500.0,0.00022188,2]
[312024416,1705557043064,-500.0,0.00022188,2]
[312024418,1705557043073,-504.75642318,0.00022188,2]
[312024420,1705557043082,-1035.88,0.00022188,2]
[312024422,1705557043091,-610.0,0.00022188,2]
[312024424,1705557043100,-500.0,0.00022188,2]
[312024426,1705557043109,-500.0,0.00022188,2]
[312024428,1705557043118,-488.37395999,0.00022188,2]
[312024430,1705557043127,-519.25152479,0.00022188,2]
[312024432,1705557043136,-500.0,0.00022188,2]
[312024434,1705557043145,-505.85732255,0.00022188,2]
[312024436,1705557043155,-637.72,0.00022188,2]
[312024438,1705557043164,-184.75635374,0.00022188,2]
[312024440,1705557043173,-1762.33,0.00022188,2]
[312024442,1705557043183,-500.0,0.00022188,2]
[312024444,1705557043192,-517.08308336,0.00022188,2]
[312024446,1705557043200,-2285.85,0.00022188,2]
[312024448,1705557043210,-500.0,0.00022188,2]
[312024450,1705557043219,-500.0,0.00022188,2]
[312024452,1705557043228,-500.0,0.00022188,2]
[312024454,1705557043237,-11459.29,0.00022188,2]
[312024456,1705557043245,-3129.45,0.00022188,2]
[312024458,1705557043254,-500.0,0.00022188,2]
[312024460,1705557043263,-500.0,0.00022188,2]
[312024462,1705557043273,-500.0,0.00022188,2]
[312024464,1705557043282,-500.0,0.00022188,2]
[312024466,1705557043291,-572.87433827,0.00022188,2]
[312024468,1705557043300,-3175.61,0.00022188,2]
[312024470,1705557043309,-500.0,0.00022188,2]
[312024472,1705557043317,-500.0,0.00022188,2]
[312024474,1705557043327,-543.39564673,0.00022188,2]
[312024476,1705557043336,-500.0,0.00022188,2]
[312024478,1705557043345,-553.34,0.00022188,2]
[312024480,1705557043354,-712.16,0.00022188,2]
[312024482,1705557043363,-500.0,0.00022188,2]
[312024484,1705557043372,-500.0,0.00022188,2]
[312024486,1705557043381,-235.19570936,0.00022188,2]
[312024488,1705557043391,-500.0,0.00022188,2]
[312024489,1705557043402,-500.0,0.00022188,2]
[312024490,1705557043411,-500.0,0.00022188,2]
[312024491,1705557043420,-500.0,0.00022188,2]
[312024492,1705557043430,-500.0,0.00022188,2]
[312024493,1705557043440,-500.0,0.00022188,2]
[312024494,1705557043449,-1140.86,0.00022188,2]
[312024495,1705557043458,-500.0,0.00022188,2]
[312024497,1705557043469,-500.0,0.00022188,2]
[312024498,1705557043478,-2128.95,0.00022188,2]
[312024499,1705557043487,-509.20791786,0.00022188,2]
[312024500,1705557043496,-500.0,0.00022188,2]
[312024501,1705557043506,-1447.03,0.00022188,2]
[312024502,1705557043515,-500.0,0.00022188,2]
[312024503,1705557043524,-500.0,0.00022188,2]
[312024504,1705557043534,-500.0,0.00022188,2]
[312024505,1705557043543,-500.0,0.00022188,2]
[312024506,1705557043553,-500.0,0.00022188,2]
[312024507,1705557043562,-500.0,0.00022188,2]
[312024508,1705557043571,-721.29,0.00022188,2]
[312024509,1705557043580,-641.93,0.00022188,2]
[312024510,1705557043590,-500.0,0.00022188,2]
[312024511,1705557043598,-590.74,0.00022188,2]
[312024512,1705557043607,-785.43,0.00022188,2]
[312024513,1705557043617,-500.0,0.00022188,2]
[312024514,1705557043626,-500.0,0.00022188,2]
[312024515,1705557043635,-507.84537177,0.00022188,2]
[312024516,1705557043645,-500.0,0.00022188,2]
[312024517,1705557043654,-500.0,0.00022188,2]
[312024518,1705557043663,-505.72523662,0.00022188,2]
[312024519,1705557043672,-500.0,0.00022188,2]
[312024520,1705557043681,-500.0,0.00022188,2]
[312024521,1705557043690,-500.0,0.00022188,2]
[312024522,1705557043699,-593.11,0.00022188,2]
[312024523,1705557043709,-516.72706331,0.00022188,2]
[312024524,1705557043718,-500.0,0.00022188,2]
[312024525,1705557043727,-500.0,0.00022188,2]
[312024526,1705557043736,-500.0,0.00022188,2]
[312024527,1705557043745,-500.0,0.00022188,2]
[312024528,1705557043754,-500.0,0.00022188,2]
[312024529,1705557043764,-607.47,0.00022188,2]
[312024530,1705557043772,-500.0,0.00022188,2]
[312024532,1705557043782,-500.0,0.00022188,2]
[312024534,1705557043791,-500.0,0.00022188,2]
[312024536,1705557043801,-500.0,0.00022188,2]
[312024537,1705557043812,-544.02,0.00022188,2]
[312024538,1705557043821,-500.0,0.00022188,2]
[312024540,1705557043832,-729.49,0.00022188,2]
[312024542,1705557043841,-500.0,0.00022188,2]
[312024544,1705557043851,-517.09684542,0.00022188,2]
[312024546,1705557043862,-574.16,0.00022188,2]
[312024548,1705557043871,-9056.6,0.00022188,2]
[312024550,1705557043882,-500.0,0.00022188,2]
[312024552,1705557043892,-500.0,0.00022188,2]
[312024553,1705557043902,-551.24,0.00022188,2]
[312024554,1705557043912,-885.48,0.00022188,2]
[312024555,1705557043922,-4244.83,0.00022188,2]
[312024556,1705557043933,-515.73576309,0.00022188,2]
[312024557,1705557043942,-266.73052397,0.00022188,2]
[312024558,1705557043953,-624.26,0.00022188,2]
[312024559,1705557043963,-500.0,0.00022188,2]
[312024560,1705557043974,-500.0,0.00022188,2]
[312024561,1705557043985,-500.0,0.00022188,2]
[312024562,1705557043996,-500.0,0.00022188,2]
[312024563,1705557044005,-1785.15,0.00022188,2]
[312024564,1705557044015,-500.0,0.00022188,2]
[312024565,1705557044024,-500.0,0.00022188,2]
[312024566,1705557044034,-500.0,0.00022188,2]
[312024567,1705557044044,-741.22,0.00022188,2]
[312024568,1705557044053,-500.0,0.00022188,2]
[312024569,1705557044062,-504.86,0.00022188,2]
[312024570,1705557044070,-500.0,0.00022188,2]
[312024571,1705557044080,-500.0,0.00022188,2]
[312024572,1705557044089,-500.0,0.00022188,2]
[312024573,1705557044098,-500.0,0.00022188,2]
[312024574,1705557044107,-500.0,0.00022188,2]
[312024575,1705557044116,-500.0,0.00022188,2]
[312024576,1705557044125,-729.35,0.00022188,2]
[312024577,1705557044134,-500.0,0.00022188,2]
[312024578,1705557044143,-670.05,0.00022188,2]
[312024579,1705557044152,-500.0,0.00022188,2]
[312024580,1705557044161,-500.0,0.00022188,2]
[312024581,1705557044170,-500.0,0.00022188,2]
[312024582,1705557044179,-1406.21,0.00022188,2]
[312024583,1705557044188,-500.0,0.00022188,2]
[312024584,1705557044197,-702.07,0.00022188,2]
[312024585,1705557044206,-591.1,0.00022188,2]
[312024586,1705557044215,-500.0,0.00022188,2]
[312024587,1705557044224,-2074.35,0.00022188,2]
[312024588,1705557044234,-500.0,0.00022188,2]
[312024589,1705557044243,-1273.32,0.00022188,2]
[312024590,1705557044253,-500.0,0.00022188,2]
[312024591,1705557044262,-500.0,0.00022188,2]
[312024592,1705557044271,-715.42,0.00022188,2]
[312024593,1705557044281,-351.79841003,0.00022188,2]
[312024594,1705557044290,-500.0,0.00022188,2]
[312024595,1705557044300,-504.87585397,0.00022188,2]
[312024596,1705557044309,-500.0,0.00022188,2]
[312024597,1705557044318,-579.61,0.00022188,2]
[312024598,1705557044327,-500.0,0.00022188,2]
[312024599,1705557044336,-879.46,0.00022188,2]
[312024600,1705557044345,-500.0,0.00022188,2]
[312024601,1705557044354,-500.0,0.00022188,2]
[312024602,1705557044363,-500.0,0.00022188,2]
[312024603,1705557044372,-500.0,0.00022188,2]
[312024604,1705557044381,-500.0,0.00022188,2]
[312024605,1705557044390,-536.36,0.00022188,2]
[312024606,1705557044403,-1310.83,0.00022188,2]
[312024607,1705557044412,-500.0,0.00022188,2]
[312024608,1705557044421,-500.0,0.00022188,2]
[312024609,1705557044430,-996.27,0.00022188,2]
[312024610,1705557044439,-509.93,0.00022188,2]
[312024611,1705557044448,-500.0,0.00022188,2]
[312024612,1705557044457,-542.58968276,0.00022188,2]
[312024613,1705557044466,-500.0,0.00022188,2]
[312024614,1705557044476,-500.0,0.00022188,2]
[312024615,1705557044486,-500.0,0.00022188,2]
[312024616,1705557044495,-1164.48,0.00022188,2]
[312024617,1705557044504,-598.38,0.00022188,2]
[312024618,1705557044513,-2134.85,0.00022188,2]
[312024619,1705557044522,-500.0,0.00022188,2]
[312024620,1705557044533,-500.0,0.00022188,2]
[312024621,1705557044542,-500.0,0.00022188,2]
[312024622,1705557044551,-500.0,0.00022188,2]
[312024623,1705557044559,-1101.06,0.00022188,2]
[312024624,1705557044568,-500.0,0.00022188,2]
[312024625,1705557044577,-513.59601016,0.00022188,2]
[312024626,1705557044586,-1054.93,0.00022188,2]
[312024627,1705557044595,-500.0,0.00022188,2]
[312024628,1705557044604,-500.0,0.00022188,2]
[312024629,1705557044613,-500.0,0.00022188,2]
[312024630,1705557044622,-618.82104304,0.00022188,2]
[312024631,1705557044631,-500.0,0.00022188,2]
[312024632,1705557044640,-500.0,0.00022188,2]
[312024633,1705557044650,-511.01253293,0.00022188,2]
[312024634,1705557044660,-500.0,0.00022188,2]
[312024635,1705557044669,-526.44,0.00022188,2]
[312024636,1705557044677,-500.0,0.00022188,2]
[312024637,1705557044687,-502.42102675,0.00022188,2]
[312024638,1705557044696,-500.0,0.00022188,2]
[312024639,1705557044705,-500.0,0.00022188,2]
[312024640,1705557044714,-1113.16,0.00022188,5]
[312024641,1705557044724,-520.83572149,0.00022188,2]
[312024642,1705557044732,-3996.16988579,0.00022188,2]
[312024643,1705557044741,-229.26195923,0.00022189,2]
[312024644,1705557044750,-500.0,0.00022189,2]
[312024645,1705557044759,-500.0,0.00022189,2]
[312024646,1705557044768,-521.96983673,0.00022189,2]
[312024647,1705557044778,-500.0,0.00022189,2]
[312024648,1705557044789,-408.40325069,0.00022189,2]
[312024649,1705557044797,-629.14069569,0.00022189,2]
[312024650,1705557044806,-500.0,0.00022189,2]
[312024651,1705557044815,-500.0,0.00022189,2]
[312024652,1705557044824,-500.0,0.00022189,2]
[312024653,1705557044833,-500.0,0.00022189,2]
[312024654,1705557044843,-500.0,0.00022189,2]
[312024655,1705557044852,-500.0,0.00022189,2]
[312024656,1705557044861,-500.0,0.00022189,2]
[312024657,1705557044870,-516.0543468,0.00022189,2]
[312024658,1705557044879,-504.92343492,0.00022189,2]
[312024659,1705557044889,-500.0,0.00022189,2]
[312024660,1705557044897,-500.0,0.00022189,2]
[312024661,1705557044906,-500.0,0.00022189,2]
[312024662,1705557044915,-500.0,0.00022189,2]
[312024663,1705557044924,-500.0,0.00022189,2]
[312024664,1705557044934,-500.0,0.00022189,2]
[312024665,1705557044942,-625.15,0.00022189,2]
[312024666,1705557044951,-500.0,0.00022189,2]
[312024667,1705557044960,-500.0,0.00022189,2]
[312024668,1705557044970,-625.0,0.00022189,2]
[312024669,1705557044980,-500.0,0.00022189,2]
[312024670,1705557044989,-626.09,0.00022189,2]
[312024671,1705557044998,-608.11,0.00022189,2]
[312024672,1705557045007,-500.0,0.00022189,2]
[312024673,1705557045016,-500.0,0.00022189,2]
[312024674,1705557045025,-511.15,0.00022189,2]
[312024675,1705557045036,-500.0,0.00022189,2]
[312024676,1705557045045,-500.0,0.00022189,2]
[312024677,1705557045054,-500.0,0.00022189,2]
[312024678,1705557045064,-500.0,0.00022189,2]
[312024679,1705557045073,-500.0,0.00022189,2]
[312024680,1705557045082,-500.0,0.00022189,2]
[312024681,1705557045091,-338.59991906,0.00022189,2]
[312024682,1705557045100,-500.0,0.00022189,2]
[312024683,1705557045109,-500.0,0.00022189,2]
[312024684,1705557045118,-500.0,0.00022189,2]
[312024685,1705557045127,-303.48838846,0.00022189,2]
[312024686,1705557045136,-500.0,0.00022189,2]
[312024687,1705557045146,-500.0,0.00022189,2]
[312024688,1705557045155,-500.0,0.00022189,2]
[312024689,1705557045164,-589.01084191,0.00022189,2]
[312024690,1705557045173,-500.0,0.00022189,2]
[312024691,1705557045182,-540.02656487,0.00022189,2]
[312024692,1705557045191,-500.0,0.00022189,2]
[312024693,1705557045200,-500.0,0.00022189,2]
[312024694,1705557045210,-500.0,0.00022189,2]